[Event "Titled Tuesday Blitz February 21 Late 2023"]
[White "Haszon, David"]
[Black "Grycel, Kamil"]
[WhiteFideId "733610"]
[BlackFideId "1115499"]
[WhiteElo "2264"]
[BlackElo "2315"]
[Result "0-1"]
[Round "04"]
[TimeControl "180+2"]
[Date "2023.02.21"]
[WhiteClock "0:00:02"]
[BlackClock "0:00:57"]

1. d4 {[%clk 0:03:00]}  b6 {[%clk 0:02:59]} 2. Nc3 {[%clk 0:02:54]}  Bb7 {[%clk 0:02:59]} 3. e4 {[%clk 0:02:54]}  e6 {[%clk 0:02:59]} 4. Be3 {[%clk 0:02:53]}  Nf6 {[%clk 0:02:59]} 5. f3 {[%clk 0:02:53]}  d5 {[%clk 0:02:55]} 6. e5 {[%clk 0:02:49]}  Ng8 {[%clk 0:02:54]} 7. Nce2 {[%clk 0:02:47]}  c5 {[%clk 0:02:53]} 8. c3 {[%clk 0:02:47]}  Ne7 {[%clk 0:02:42]} 9. g4 {[%clk 0:02:24]}  Nec6 {[%clk 0:02:36]} 10. h4 {[%clk 0:02:17]}  h5 {[%clk 0:02:32]} 11. g5 {[%clk 0:02:16]}  g6 {[%clk 0:02:29]} 12. Nh3 {[%clk 0:02:13]}  Ne7 {[%clk 0:02:23]} 13. Nhf4 {[%clk 0:02:10]}  Nf5 {[%clk 0:02:23]} 14. Bf2 {[%clk 0:02:10]}  Nc6 {[%clk 0:02:21]} 15. Bh3 {[%clk 0:02:08]}  cxd4 {[%clk 0:02:19]} 16. Bxf5 {[%clk 0:01:51]}  gxf5 {[%clk 0:02:04]} 17. Bxd4 {[%clk 0:01:29]}  Qd7 {[%clk 0:01:59]} 18. Nd3 {[%clk 0:01:21]}  Nxd4 {[%clk 0:01:50]} 19. Nxd4 {[%clk 0:01:17]}  Ba6 {[%clk 0:01:48]} 20. Qd2 {[%clk 0:00:53]}  Bg7 {[%clk 0:01:43]} 21. f4 {[%clk 0:00:53]}  Bf8 {[%clk 0:01:36]} 22. Rg1 {[%clk 0:00:50]}  Rg8 {[%clk 0:01:29]} 23. Rg3 {[%clk 0:00:42]}  Bc5 {[%clk 0:01:26]} 24. Nb3 {[%clk 0:00:36]}  Qc7 {[%clk 0:01:20]} 25. a3 {[%clk 0:00:30]}  Bc4 {[%clk 0:01:15]} 26. Nd4 {[%clk 0:00:21]}  Rc8 {[%clk 0:01:12]} 27. b4 {[%clk 0:00:10]}  Bxd4 {[%clk 0:01:06]} 28. cxd4 {[%clk 0:00:11]}  Qd7 {[%clk 0:01:06]} 29. Rc1 {[%clk 0:00:11]}  Qb5 {[%clk 0:01:06]} 30. Nb2 {[%clk 0:00:09]}  Ke7 {[%clk 0:01:06]} 31. Rgc3 {[%clk 0:00:10]}  Rgd8 {[%clk 0:01:03]} 32. Nxc4 {[%clk 0:00:10]}  dxc4 {[%clk 0:01:03]} 33. Rd1 {[%clk 0:00:08]}  Qd5 {[%clk 0:01:02]} 34. Qf2 {[%clk 0:00:07]}  Qh1+ {[%clk 0:01:01]} 35. Ke2 {[%clk 0:00:06]}  Qe4+ {[%clk 0:01:02]} 36. Kf1 {[%clk 0:00:06]}  b5 {[%clk 0:01:01]} 37. Qf3 {[%clk 0:00:05]}  Rxd4 {[%clk 0:00:59]} 38. Rxd4 {[%clk 0:00:04]}  Qxd4 {[%clk 0:00:58]} 39. Kg2 {[%clk 0:00:02]}  Rd8 {[%clk 0:00:57]} 0-1


[Site "https://www.chess.com"]

[Event "Titled Tuesday Blitz February 21 Late 2023"]
[White "Antonios, Johnny"]
[Black "Coelho, Ramyres Santana"]
[WhiteFideId "5300843"]
[BlackFideId "2120690"]
[WhiteElo "2269"]
[BlackElo "1981"]
[Result "0-1"]
[Round "04"]
[TimeControl "180+2"]
[Date "2023.02.21"]
[WhiteClock "0:00:47"]
[BlackClock "0:01:54"]

1. e4 {[%clk 0:03:00]}  c5 {[%clk 0:02:59]} 2. Nf3 {[%clk 0:03:00]}  d6 {[%clk 0:02:59]} 3. d4 {[%clk 0:03:00]}  cxd4 {[%clk 0:03:00]} 4. Nxd4 {[%clk 0:03:01]}  Nf6 {[%clk 0:02:59]} 5. Nc3 {[%clk 0:03:01]}  a6 {[%clk 0:02:58]} 6. h3 {[%clk 0:03:02]}  e6 {[%clk 0:02:57]} 7. g4 {[%clk 0:03:01]}  b5 {[%clk 0:02:56]} 8. Bg2 {[%clk 0:03:01]}  Bb7 {[%clk 0:02:55]} 9. O-O {[%clk 0:03:02]}  Qc7 {[%clk 0:02:56]} 10. Re1 {[%clk 0:02:59]}  Nc6 {[%clk 0:02:55]} 11. Nd5 {[%clk 0:02:56]}  Nxd5 {[%clk 0:02:49]} 12. exd5 {[%clk 0:02:13]}  Nxd4 {[%clk 0:02:48]} 13. Qxd4 {[%clk 0:02:14]}  e5 {[%clk 0:02:47]} 14. f4 {[%clk 0:02:14]}  f6 {[%clk 0:02:42]} 15. fxe5 {[%clk 0:01:42]}  dxe5 {[%clk 0:02:40]} 16. d6 {[%clk 0:01:38]}  Bxd6 {[%clk 0:02:35]} 17. Bxb7 {[%clk 0:01:06]}  Bc5 {[%clk 0:02:31]} 18. Qxc5 {[%clk 0:01:07]}  Qxc5+ {[%clk 0:02:31]} 19. Be3 {[%clk 0:01:08]}  Qxc2 {[%clk 0:02:14]} 20. Bxa8 {[%clk 0:01:06]}  O-O {[%clk 0:02:14]} 21. Rad1 {[%clk 0:01:04]}  Qxb2 {[%clk 0:02:09]} 22. Bd5+ {[%clk 0:01:03]}  Kh8 {[%clk 0:02:09]} 23. Bc5 {[%clk 0:00:57]}  Qc3 {[%clk 0:02:03]} 24. Bxf8 {[%clk 0:00:55]}  Qxh3 {[%clk 0:01:58]} 25. Bg2 {[%clk 0:00:47]}  Qxg4 {[%clk 0:01:54]} 26. Rd7 {[%clk 0:00:47]}  Qxd7 {[%clk 0:01:54]} 27. Bb4 {[%clk 0:00:47]}  Qd4+ {[%clk 0:01:54]} 0-1


[Site "https://www.chess.com"]

[Event "Titled Tuesday Blitz February 21 Late 2023"]
[White "Aradhya, Garg"]
[Black "Leve, Nitai"]
[WhiteFideId "25006746"]
[BlackFideId "2006898"]
[WhiteElo "2284"]
[BlackElo "2128"]
[Result "0-1"]
[Round "04"]
[TimeControl "180+2"]
[Date "2023.02.21"]
[WhiteClock "0:00:11"]
[BlackClock "0:00:05"]

1. d4 {[%clk 0:03:00]}  d5 {[%clk 0:02:58]} 2. c4 {[%clk 0:02:59]}  c6 {[%clk 0:02:59]} 3. Nc3 {[%clk 0:02:59]}  Nf6 {[%clk 0:02:59]} 4. e3 {[%clk 0:02:59]}  a6 {[%clk 0:02:58]} 5. Nf3 {[%clk 0:02:59]}  Bg4 {[%clk 0:02:52]} 6. Qb3 {[%clk 0:02:57]}  Bxf3 {[%clk 0:02:45]} 7. Qxb7 {[%clk 0:02:56]}  Nbd7 {[%clk 0:02:41]} 8. gxf3 {[%clk 0:02:55]}  e6 {[%clk 0:02:41]} 9. Qxc6 {[%clk 0:02:52]}  dxc4 {[%clk 0:02:07]} 10. Bxc4 {[%clk 0:02:42]}  Bb4 {[%clk 0:01:54]} 11. Bd2 {[%clk 0:02:07]}  O-O {[%clk 0:01:51]} 12. Qa4 {[%clk 0:02:01]}  Qe7 {[%clk 0:01:50]} 13. a3 {[%clk 0:01:53]}  Bd6 {[%clk 0:01:19]} 14. f4 {[%clk 0:00:55]}  Ng4 {[%clk 0:00:25]} 15. Ne4 {[%clk 0:00:36]}  Nb6 {[%clk 0:00:16]} 16. Qb3 {[%clk 0:00:36]}  Nxc4 {[%clk 0:00:16]} 17. Qxc4 {[%clk 0:00:34]}  Qb7 {[%clk 0:00:14]} 18. f3 {[%clk 0:00:30]}  Be7 {[%clk 0:00:08]} 19. Bb4 {[%clk 0:00:25]}  Bh4+ {[%clk 0:00:06]} 20. Ke2 {[%clk 0:00:25]}  Nf6 {[%clk 0:00:05]} 21. Nxf6+ {[%clk 0:00:17]}  Bxf6 {[%clk 0:00:04]} 22. Bxf8 {[%clk 0:00:17]}  Rxf8 {[%clk 0:00:05]} 23. b4 {[%clk 0:00:16]}  Rc8 {[%clk 0:00:05]} 24. Qd3 {[%clk 0:00:16]}  Qd5 {[%clk 0:00:02]} 25. Rhc1 {[%clk 0:00:14]}  Rd8 {[%clk 0:00:03]} 26. Rc5 {[%clk 0:00:13]}  Qd6 {[%clk 0:00:03]} 27. Rac1 {[%clk 0:00:13]}  h6 {[%clk 0:00:03]} 28. Rc8 {[%clk 0:00:13]}  g6 {[%clk 0:00:03]} 29. Rxd8+ {[%clk 0:00:13]}  Bxd8 {[%clk 0:00:03]} 30. Qe4 {[%clk 0:00:13]}  Kh7 {[%clk 0:00:02]} 31. Qc6 {[%clk 0:00:13]}  Qe7 {[%clk 0:00:02]} 32. Qa8 {[%clk 0:00:12]}  Qh4 {[%clk 0:00:02]} 33. Rc8 {[%clk 0:00:12]}  Qxh2+ {[%clk 0:00:02]} 34. Kd3 {[%clk 0:00:12]}  Qg1 {[%clk 0:00:03]} 35. Rxd8 {[%clk 0:00:12]}  Qb1+ {[%clk 0:00:02]} 36. Kc3 {[%clk 0:00:12]}  Qc1+ {[%clk 0:00:02]} 37. Kd3 {[%clk 0:00:11]}  Qb1+ {[%clk 0:00:02]} 38. Ke2 {[%clk 0:00:11]}  Qc2+ {[%clk 0:00:03]} 39. Kf1 {[%clk 0:00:11]}  Qd1+ {[%clk 0:00:03]} 40. Kg2 {[%clk 0:00:11]}  Qe2+ {[%clk 0:00:03]} 41. Kg3 {[%clk 0:00:12]}  Qe1+ {[%clk 0:00:03]} 42. Kg2 {[%clk 0:00:12]}  Qe2+ {[%clk 0:00:04]} 43. Kg3 {[%clk 0:00:12]}  Qe1+ {[%clk 0:00:04]} 44. Kh3 {[%clk 0:00:12]}  Qh1+ {[%clk 0:00:04]} 45. Kg3 {[%clk 0:00:10]}  Qg1+ {[%clk 0:00:05]} 46. Kh4 {[%clk 0:00:11]}  Qh2+ {[%clk 0:00:05]} 47. Kg4 {[%clk 0:00:11]}  f5# {[%clk 0:00:05]} 0-1


[Site "https://www.chess.com"]

[Event "Titled Tuesday Blitz February 21 Late 2023"]
[White "Goncalves, Davi Sulzbacher"]
[Black "Adewumi, Tanitoluwa"]
[WhiteFideId "2154510"]
[BlackFideId "30966396"]
[WhiteElo "2282"]
[BlackElo "2283"]
[Result "1-0"]
[Round "04"]
[TimeControl "180+2"]
[Date "2023.02.21"]
[WhiteClock "0:01:30"]
[BlackClock "0:00:02"]

1. Nf3 {[%clk 0:03:00]}  Nf6 {[%clk 0:02:49]} 2. g3 {[%clk 0:02:59]}  d5 {[%clk 0:02:48]} 3. Bg2 {[%clk 0:03:00]}  Bf5 {[%clk 0:02:49]} 4. O-O {[%clk 0:03:00]}  e6 {[%clk 0:02:49]} 5. d4 {[%clk 0:02:55]}  h6 {[%clk 0:02:39]} 6. c4 {[%clk 0:02:54]}  c6 {[%clk 0:02:37]} 7. Qb3 {[%clk 0:02:49]}  Qb6 {[%clk 0:02:37]} 8. c5 {[%clk 0:02:46]}  Qc7 {[%clk 0:02:37]} 9. Bf4 {[%clk 0:02:46]}  Qc8 {[%clk 0:02:36]} 10. Nc3 {[%clk 0:02:45]}  Nbd7 {[%clk 0:02:35]} 11. Qd1 {[%clk 0:02:43]}  b6 {[%clk 0:02:34]} 12. b4 {[%clk 0:02:42]}  Qa6 {[%clk 0:02:28]} 13. b5 {[%clk 0:02:33]}  cxb5 {[%clk 0:01:54]} 14. c6 {[%clk 0:02:32]}  Nb8 {[%clk 0:01:47]} 15. a4 {[%clk 0:02:11]}  Nxc6 {[%clk 0:00:23]} 16. axb5 {[%clk 0:02:09]}  Qb7 {[%clk 0:00:20]} 17. bxc6 {[%clk 0:02:07]}  Qxc6 {[%clk 0:00:15]} 18. Ne5 {[%clk 0:01:51]}  Qb7 {[%clk 0:00:05]} 19. Qa4+ {[%clk 0:01:46]}  Nd7 {[%clk 0:00:05]} 20. e4 {[%clk 0:01:31]}  dxe4 {[%clk 0:00:02]} 21. Nxe4 {[%clk 0:01:30]} 1-0


[Site "https://www.chess.com"]

[Event "Titled Tuesday Blitz February 21 Late 2023"]
[White "Kovalevsky, Stanislav"]
[Black "Sielecki, Christof"]
[WhiteFideId "13508598"]
[BlackFideId "4620437"]
[WhiteElo "2237"]
[BlackElo "2419"]
[Result "0-1"]
[Round "04"]
[TimeControl "180+2"]
[Date "2023.02.21"]
[WhiteClock "0:00:14"]
[BlackClock "0:00:31"]

1. c4 {[%clk 0:03:00]}  e6 {[%clk 0:02:59]} 2. e4 {[%clk 0:03:00]}  d5 {[%clk 0:02:59]} 3. exd5 {[%clk 0:03:01]}  exd5 {[%clk 0:03:00]} 4. cxd5 {[%clk 0:03:02]}  Nf6 {[%clk 0:02:59]} 5. Nc3 {[%clk 0:03:02]}  Nxd5 {[%clk 0:02:58]} 6. Bc4 {[%clk 0:03:03]}  Be6 {[%clk 0:02:55]} 7. Qb3 {[%clk 0:02:46]}  c6 {[%clk 0:02:21]} 8. Qxb7 {[%clk 0:02:28]}  Nd7 {[%clk 0:02:14]} 9. Bxd5 {[%clk 0:02:18]}  Bxd5 {[%clk 0:02:00]} 10. Nxd5 {[%clk 0:02:16]}  cxd5 {[%clk 0:02:01]} 11. Qxd5 {[%clk 0:02:12]}  Be7 {[%clk 0:01:57]} 12. Nf3 {[%clk 0:02:07]}  O-O {[%clk 0:01:57]} 13. O-O {[%clk 0:02:07]}  Qc7 {[%clk 0:01:52]} 14. d4 {[%clk 0:02:04]}  Nf6 {[%clk 0:01:52]} 15. Qf5 {[%clk 0:01:57]}  Rad8 {[%clk 0:01:45]} 16. Bf4 {[%clk 0:01:53]}  Qb6 {[%clk 0:01:43]} 17. b3 {[%clk 0:01:47]}  Nd5 {[%clk 0:01:44]} 18. Be5 {[%clk 0:01:39]}  g6 {[%clk 0:01:38]} 19. Qh3 {[%clk 0:01:33]}  f6 {[%clk 0:01:23]} 20. Bg3 {[%clk 0:01:27]}  f5 {[%clk 0:01:22]} 21. Be5 {[%clk 0:01:24]}  Bf6 {[%clk 0:01:19]} 22. Rfe1 {[%clk 0:01:21]}  Bxe5 {[%clk 0:01:18]} 23. Nxe5 {[%clk 0:01:12]}  Nf4 {[%clk 0:01:15]} 24. Qf3 {[%clk 0:01:08]}  Ne6 {[%clk 0:00:59]} 25. Rad1 {[%clk 0:00:37]}  Nxd4 {[%clk 0:00:58]} 26. Qe3 {[%clk 0:00:25]}  Nc2 {[%clk 0:00:54]} 27. Qxb6 {[%clk 0:00:22]}  axb6 {[%clk 0:00:55]} 28. Rxd8 {[%clk 0:00:18]}  Rxd8 {[%clk 0:00:54]} 29. Rc1 {[%clk 0:00:19]}  Nb4 {[%clk 0:00:52]} 30. g3 {[%clk 0:00:17]}  Nxa2 {[%clk 0:00:47]} 31. Rc6 {[%clk 0:00:17]}  Nb4 {[%clk 0:00:37]} 32. Rxb6 {[%clk 0:00:17]}  Nd3 {[%clk 0:00:36]} 33. Kg2 {[%clk 0:00:17]}  Nxe5 {[%clk 0:00:35]} 34. Rb7 {[%clk 0:00:17]}  Rd2 {[%clk 0:00:35]} 35. h3 {[%clk 0:00:16]}  Nd3 {[%clk 0:00:34]} 36. Rd7 {[%clk 0:00:16]}  Rxf2+ {[%clk 0:00:33]} 37. Kg1 {[%clk 0:00:16]}  Rf3 {[%clk 0:00:34]} 38. Kh2 {[%clk 0:00:14]}  Ne5 {[%clk 0:00:32]} 39. Rd4 {[%clk 0:00:13]}  Rxb3 {[%clk 0:00:31]} 40. g4 {[%clk 0:00:14]}  Nf3+ {[%clk 0:00:31]} 0-1


[Site "https://www.chess.com"]

[Event "Titled Tuesday Blitz February 21 Late 2023"]
[White "Pinheiro, Iung Alicio de O."]
[Black "Koziol, Kamil"]
[WhiteFideId "2104350"]
[BlackFideId "1161555"]
[WhiteElo "2306"]
[BlackElo "2286"]
[Result "1/2-1/2"]
[Round "04"]
[TimeControl "180+2"]
[Date "2023.02.21"]
[WhiteClock "0:00:05"]
[BlackClock "0:00:17"]

1. e4 {[%clk 0:03:00]}  c5 {[%clk 0:02:59]} 2. Nf3 {[%clk 0:03:00]}  e6 {[%clk 0:02:59]} 3. d3 {[%clk 0:02:59]}  Nc6 {[%clk 0:02:57]} 4. g3 {[%clk 0:02:57]}  d5 {[%clk 0:02:56]} 5. Qe2 {[%clk 0:02:57]}  Be7 {[%clk 0:02:55]} 6. Bg2 {[%clk 0:02:56]}  Nf6 {[%clk 0:02:54]} 7. O-O {[%clk 0:02:56]}  O-O {[%clk 0:02:52]} 8. e5 {[%clk 0:02:56]}  Nd7 {[%clk 0:02:52]} 9. c4 {[%clk 0:02:57]}  Qc7 {[%clk 0:02:45]} 10. Bf4 {[%clk 0:02:52]}  dxc4 {[%clk 0:02:17]} 11. dxc4 {[%clk 0:02:50]}  b6 {[%clk 0:02:15]} 12. Nc3 {[%clk 0:02:40]}  a6 {[%clk 0:02:11]} 13. Rad1 {[%clk 0:02:37]}  Bb7 {[%clk 0:02:09]} 14. Nd5 {[%clk 0:02:34]}  Qd8 {[%clk 0:01:37]} 15. Nxe7+ {[%clk 0:02:31]}  Qxe7 {[%clk 0:01:37]} 16. Rd6 {[%clk 0:02:08]}  Rad8 {[%clk 0:01:19]} 17. Rfd1 {[%clk 0:02:05]}  h6 {[%clk 0:00:58]} 18. h4 {[%clk 0:01:52]}  Rfe8 {[%clk 0:00:37]} 19. h5 {[%clk 0:01:41]}  Nf8 {[%clk 0:00:37]} 20. R1d2 {[%clk 0:01:22]}  Rxd6 {[%clk 0:00:37]} 21. exd6 {[%clk 0:01:17]}  Qd7 {[%clk 0:00:37]} 22. Ne5 {[%clk 0:01:11]}  Nxe5 {[%clk 0:00:36]} 23. Bxe5 {[%clk 0:01:12]}  Bxg2 {[%clk 0:00:34]} 24. Kxg2 {[%clk 0:01:12]}  f6 {[%clk 0:00:35]} 25. Bf4 {[%clk 0:01:08]}  e5 {[%clk 0:00:36]} 26. Be3 {[%clk 0:01:08]}  Ne6 {[%clk 0:00:34]} 27. Rd5 {[%clk 0:01:07]}  Qc6 {[%clk 0:00:33]} 28. Qf3 {[%clk 0:00:53]}  Rd8 {[%clk 0:00:24]} 29. d7 {[%clk 0:00:45]}  Nd4 {[%clk 0:00:17]} 30. Bxd4 {[%clk 0:00:44]}  cxd4 {[%clk 0:00:17]} 31. Qf5 {[%clk 0:00:41]}  Kf8 {[%clk 0:00:15]} 32. b3 {[%clk 0:00:37]}  b5 {[%clk 0:00:14]} 33. f4 {[%clk 0:00:29]}  bxc4 {[%clk 0:00:14]} 34. bxc4 {[%clk 0:00:29]}  Qxc4 {[%clk 0:00:14]} 35. Qe4 {[%clk 0:00:22]}  Qc6 {[%clk 0:00:12]} 36. fxe5 {[%clk 0:00:18]}  Rxd7 {[%clk 0:00:12]} 37. Rxd4 {[%clk 0:00:15]}  Qxe4+ {[%clk 0:00:11]} 38. Rxe4 {[%clk 0:00:16]}  fxe5 {[%clk 0:00:10]} 39. Rxe5 {[%clk 0:00:17]}  Rd2+ {[%clk 0:00:10]} 40. Kf3 {[%clk 0:00:17]}  Rxa2 {[%clk 0:00:11]} 41. Re6 {[%clk 0:00:17]}  Kf7 {[%clk 0:00:11]} 42. Rb6 {[%clk 0:00:17]}  Ra5 {[%clk 0:00:11]} 43. g4 {[%clk 0:00:17]}  Ra3+ {[%clk 0:00:12]} 44. Kf4 {[%clk 0:00:17]}  Ra1 {[%clk 0:00:12]} 45. Kf5 {[%clk 0:00:17]}  a5 {[%clk 0:00:12]} 46. Rb7+ {[%clk 0:00:17]}  Kf8 {[%clk 0:00:13]} 47. Ra7 {[%clk 0:00:18]}  a4 {[%clk 0:00:13]} 48. Kg6 {[%clk 0:00:16]}  a3 {[%clk 0:00:13]} 49. Ra8+ {[%clk 0:00:16]}  Ke7 {[%clk 0:00:14]} 50. Kxg7 {[%clk 0:00:16]}  Rg1 {[%clk 0:00:14]} 51. Kxh6 {[%clk 0:00:15]}  Rxg4 {[%clk 0:00:14]} 52. Rxa3 {[%clk 0:00:16]}  Kf7 {[%clk 0:00:14]} 53. Ra7+ {[%clk 0:00:13]}  Kg8 {[%clk 0:00:14]} 54. Ra8+ {[%clk 0:00:14]}  Kf7 {[%clk 0:00:14]} 55. Ra6 {[%clk 0:00:12]}  Rg1 {[%clk 0:00:14]} 56. Rg6 {[%clk 0:00:10]}  Rh1 {[%clk 0:00:14]} 57. Rg2 {[%clk 0:00:08]}  Kf8 {[%clk 0:00:14]} 58. Rg5 {[%clk 0:00:07]}  Kf7 {[%clk 0:00:15]} 59. Kh7 {[%clk 0:00:07]}  Kf6 {[%clk 0:00:14]} 60. Ra5 {[%clk 0:00:06]}  Kf7 {[%clk 0:00:15]} 61. h6 {[%clk 0:00:07]}  Kf8 {[%clk 0:00:15]} 62. Rg5 {[%clk 0:00:07]}  Kf7 {[%clk 0:00:16]} 63. Rg7+ {[%clk 0:00:07]}  Kf8 {[%clk 0:00:16]} 64. Rg6 {[%clk 0:00:08]}  Kf7 {[%clk 0:00:16]} 65. Ra6 {[%clk 0:00:08]}  Rf1 {[%clk 0:00:16]} 66. Kh8 {[%clk 0:00:08]}  Kf8 {[%clk 0:00:16]} 67. h7 {[%clk 0:00:07]}  Kf7 {[%clk 0:00:16]} 68. Ra8 {[%clk 0:00:07]}  Rf2 {[%clk 0:00:16]} 69. Rg8 {[%clk 0:00:07]}  Rf1 {[%clk 0:00:16]} 70. Rg7+ {[%clk 0:00:07]}  Kf8 {[%clk 0:00:16]} 71. Rg3 {[%clk 0:00:07]}  Rf2 {[%clk 0:00:16]} 72. Ra3 {[%clk 0:00:07]}  Kf7 {[%clk 0:00:17]} 73. Ra8 {[%clk 0:00:06]}  Rf1 {[%clk 0:00:17]} 74. Rb8 {[%clk 0:00:07]}  Rf2 {[%clk 0:00:17]} 75. Rb7+ {[%clk 0:00:07]}  Kf8 {[%clk 0:00:17]} 76. Rg7 {[%clk 0:00:07]}  Rf1 {[%clk 0:00:17]} 77. Rg8+ {[%clk 0:00:05]}  Kf7 {[%clk 0:00:17]} 78. Rg2 {[%clk 0:00:05]}  Kf8 {[%clk 0:00:17]} 79. Ra2 {[%clk 0:00:05]}  Kf7 {[%clk 0:00:17]} 80. Ra7+ {[%clk 0:00:05]}  Kf8 {[%clk 0:00:18]} 81. Ra6 {[%clk 0:00:05]}  Kf7 {[%clk 0:00:18]} 82. Ra8 {[%clk 0:00:04]}  Rf2 {[%clk 0:00:16]} 83. Rb8 {[%clk 0:00:04]}  Rf1 {[%clk 0:00:16]} 84. Rc8 {[%clk 0:00:05]}  Rf2 {[%clk 0:00:16]} 85. Rd8 {[%clk 0:00:05]}  Rf1 {[%clk 0:00:16]} 86. Rd7+ {[%clk 0:00:04]}  Kf8 {[%clk 0:00:16]} 87. Rg7 {[%clk 0:00:05]}  Rf2 {[%clk 0:00:16]} 88. Rg1 {[%clk 0:00:05]}  Kf7 {[%clk 0:00:17]} 89. Rg3 {[%clk 0:00:05]}  Rf1 {[%clk 0:00:17]} 90. Ra3 {[%clk 0:00:05]}  Kf8 {[%clk 0:00:17]} 91. Ra6 {[%clk 0:00:05]} 1/2-1/2


[Site "https://www.chess.com"]

[Event "Titled Tuesday Blitz February 21 Late 2023"]
[White "Guzman, Christopher"]
[Black "Sarkar, Justin"]
[WhiteFideId "6405096"]
[BlackFideId "2010011"]
[WhiteElo "2271"]
[BlackElo "2309"]
[Result "1-0"]
[Round "04"]
[TimeControl "180+2"]
[Date "2023.02.21"]
[WhiteClock "0:02:06"]
[BlackClock "0:00:01"]

1. e4 {[%clk 0:03:00]}  c5 {[%clk 0:02:43]} 2. Nf3 {[%clk 0:02:59]}  d6 {[%clk 0:02:41]} 3. d4 {[%clk 0:02:59]}  cxd4 {[%clk 0:02:40]} 4. Nxd4 {[%clk 0:03:00]}  Nf6 {[%clk 0:02:40]} 5. Nc3 {[%clk 0:03:00]}  a6 {[%clk 0:02:40]} 6. h4 {[%clk 0:03:00]}  Nc6 {[%clk 0:02:21]} 7. Bg5 {[%clk 0:02:56]}  e6 {[%clk 0:02:13]} 8. Qd2 {[%clk 0:02:55]}  h6 {[%clk 0:02:05]} 9. Nxc6 {[%clk 0:02:49]}  bxc6 {[%clk 0:02:03]} 10. Bf4 {[%clk 0:02:50]}  d5 {[%clk 0:01:52]} 11. a3 {[%clk 0:02:44]}  Nxe4 {[%clk 0:01:06]} 12. Nxe4 {[%clk 0:02:43]}  dxe4 {[%clk 0:01:06]} 13. Qc3 {[%clk 0:02:42]}  c5 {[%clk 0:00:48]} 14. Bc4 {[%clk 0:02:36]}  Be7 {[%clk 0:00:32]} 15. Be5 {[%clk 0:02:31]}  Bf6 {[%clk 0:00:23]} 16. Rd1 {[%clk 0:02:27]}  Bd7 {[%clk 0:00:22]} 17. O-O {[%clk 0:02:18]}  O-O {[%clk 0:00:06]} 18. Bxf6 {[%clk 0:02:15]}  gxf6 {[%clk 0:00:06]} 19. Qd2 {[%clk 0:02:15]}  Bc6 {[%clk 0:00:03]} 20. Qxh6 {[%clk 0:02:15]}  Qe7 {[%clk 0:00:03]} 21. Rde1 {[%clk 0:02:11]}  f5 {[%clk 0:00:02]} 22. Re3 {[%clk 0:02:10]}  f4 {[%clk 0:00:01]} 23. Qxf4 {[%clk 0:02:09]}  f5 {[%clk 0:00:01]} 24. Rg3+ {[%clk 0:02:07]}  Kf7 {[%clk 0:00:01]} 25. Qe5 {[%clk 0:02:06]} 1-0


[Site "https://www.chess.com"]

[Event "Titled Tuesday Blitz February 21 Late 2023"]
[White "Veiga, Jose Francisco R P Neves"]
[Black "Kovacs, Klara"]
[WhiteFideId "1930087"]
[BlackFideId "733210"]
[WhiteElo "2406"]
[BlackElo "2121"]
[Result "1-0"]
[Round "04"]
[TimeControl "180+2"]
[Date "2023.02.21"]
[WhiteClock "0:01:10"]
[BlackClock "0:00:12"]

1. b3 {[%clk 0:02:57]}  e5 {[%clk 0:02:53]} 2. Bb2 {[%clk 0:02:57]}  d6 {[%clk 0:02:53]} 3. c4 {[%clk 0:02:56]}  Nc6 {[%clk 0:02:53]} 4. e3 {[%clk 0:02:55]}  Nf6 {[%clk 0:02:48]} 5. d3 {[%clk 0:02:54]}  Be7 {[%clk 0:02:48]} 6. Nf3 {[%clk 0:02:54]}  O-O {[%clk 0:02:49]} 7. Be2 {[%clk 0:02:54]}  Bg4 {[%clk 0:02:38]} 8. O-O {[%clk 0:02:54]}  Qd7 {[%clk 0:02:34]} 9. h3 {[%clk 0:02:52]}  Bxf3 {[%clk 0:02:33]} 10. Bxf3 {[%clk 0:02:53]}  Nd8 {[%clk 0:02:32]} 11. d4 {[%clk 0:02:51]}  e4 {[%clk 0:02:32]} 12. Be2 {[%clk 0:02:50]}  c6 {[%clk 0:02:32]} 13. d5 {[%clk 0:02:48]}  c5 {[%clk 0:02:32]} 14. Nc3 {[%clk 0:02:44]}  Re8 {[%clk 0:02:31]} 15. Qc2 {[%clk 0:02:44]}  Qf5 {[%clk 0:02:31]} 16. f3 {[%clk 0:02:42]}  Qg5 {[%clk 0:02:29]} 17. f4 {[%clk 0:02:34]}  Qg3 {[%clk 0:02:28]} 18. Qd2 {[%clk 0:02:27]}  b6 {[%clk 0:02:19]} 19. Bd1 {[%clk 0:02:26]}  Nb7 {[%clk 0:02:04]} 20. Bc2 {[%clk 0:02:26]}  Bf8 {[%clk 0:02:01]} 21. Qf2 {[%clk 0:02:26]}  Qg6 {[%clk 0:01:56]} 22. g4 {[%clk 0:02:24]}  h6 {[%clk 0:01:47]} 23. Kh1 {[%clk 0:02:22]}  a6 {[%clk 0:01:38]} 24. a4 {[%clk 0:02:16]}  Na5 {[%clk 0:01:34]} 25. Qg2 {[%clk 0:02:15]}  Rab8 {[%clk 0:01:20]} 26. f5 {[%clk 0:02:15]}  Qg5 {[%clk 0:01:17]} 27. Rf4 {[%clk 0:02:16]}  Nd7 {[%clk 0:01:10]} 28. Nxe4 {[%clk 0:02:08]}  Qd8 {[%clk 0:01:09]} 29. f6 {[%clk 0:02:07]}  g6 {[%clk 0:01:08]} 30. g5 {[%clk 0:02:03]}  h5 {[%clk 0:01:03]} 31. Bc3 {[%clk 0:01:56]}  Ne5 {[%clk 0:00:59]} 32. Nd2 {[%clk 0:01:48]}  Qd7 {[%clk 0:00:52]} 33. Kh2 {[%clk 0:01:46]}  Nb7 {[%clk 0:00:48]} 34. Nf3 {[%clk 0:01:37]}  Nxf3+ {[%clk 0:00:46]} 35. Qxf3 {[%clk 0:01:38]}  b5 {[%clk 0:00:44]} 36. axb5 {[%clk 0:01:37]}  axb5 {[%clk 0:00:45]} 37. Rh4 {[%clk 0:01:33]}  bxc4 {[%clk 0:00:42]} 38. bxc4 {[%clk 0:01:32]}  Ra8 {[%clk 0:00:42]} 39. Rxh5 {[%clk 0:01:27]}  Rxa1 {[%clk 0:00:40]} 40. Bxa1 {[%clk 0:01:28]}  Ra8 {[%clk 0:00:22]} 41. Bxg6 {[%clk 0:01:14]}  Ra2+ {[%clk 0:00:12]} 42. Kg3 {[%clk 0:01:11]}  Rxa1 {[%clk 0:00:12]} 43. Bh7+ {[%clk 0:01:10]}  Kh8 {[%clk 0:00:12]} 44. Bf5+ {[%clk 0:01:10]}  Kg8 {[%clk 0:00:13]} 45. Bxd7 {[%clk 0:01:10]}  Rg1+ {[%clk 0:00:12]} 46. Kh2 {[%clk 0:01:10]} 1-0


[Site "https://www.chess.com"]